[Event "28th Bosnjaci Open 2024"]
[Site "Bosnjaci"]
[Date "2024.01.06"]
[Round "5.2"]
[White "Saric, Ante"]
[Black "Zovko, Mario"]
[Result "1-0"]
[ECO "D30"]
[WhiteElo "2508"]
[BlackElo "2268"]
[Annotator "TA"]
[PlyCount "179"]
[EventDate "2024.01.02"]
[EventType "swiss"]
[EventCountry "CRO"]
[SourceTitle "playchess.com"]
[Source "ChessBase"]
[SourceQuality "1"]
[TimeControl "5400+30"]

{[%evp 19,179,20,23,20,18,15,27,21,23,18,18,18,23,18,24,18,25,25,36,33,37,33,43,41,48,46,45,26,29,28,40,14,47,50,48,50,48,45,54,46,55,50,51,50,61,45,77,62,67,59,64,66,62,62,78,74,86,85,77,35,35,35,81,91,83,83,98,98,98,98,98,98,98,98,98,98,98,98,98,98,98,98,98,98,98,85,94,94,94,94,94,94,98,95,95,94,94,94,94,95,94,95,98,56,57,58,69,38,81,43,39,39,39,39,49,50,50,26,77,93,79,81,79,68,229,234,229,218,312,310,507,343,343,175,172,47,495,477,452,402,447,392,514,220,162,0,439,410,437,297,285,275,468,452,423,404,1302,1292,1231,1176,4586,1231]} 1. d4 {[%emt 0:00:04]} d5 {[%emt 0:01:43]} 2. Nf3 {[%emt 0:00:06]} c5 {[%emt 0:00:09]} 3. c4 {[%emt 0:00:04]} e6 {[%emt 0:00:26]} 4. cxd5 {[%emt 0:00:06]} exd5 {[%emt 0:00:05]} 5. g3 {[%emt 0:00:57]} Nf6 {[%emt 0:00:07]} 6. Bg2 {[%emt 0:00:02]} Be7 {[%emt 0:00:05]} 7. O-O {[%emt 0:00:11]} O-O {[%emt 0:00:06]} 8. dxc5 {[%emt 0:00:02]} Bxc5 {[%emt 0:00:08]} 9. Qc2 {[%emt 0:00:04] 9.a3 is a critical line.} Bb6 {[%emt 0:02:07]} 10. Nc3 {[%emt 0:00:53]} Nc6 {[%emt 0:06:39]} 11. Bg5 {[%emt 0:00:50] D30: Queen's Gambit Declined: Systems without Nc3.} d4 {[%emt 0:00:08]} 12. Ne4 {[%emt 0:01:03]} Bf5 {[%emt 0:00:06]} 13. Nh4 {[%emt 0:00:14] White has an edge.} Bxe4 {[%emt 0:00:05]} 14. Bxe4 {[%emt 0:00:04]} h6 {[%emt 0:00:09]} 15. Bxf6 {[%emt 0:00:04]} Qxf6 {[%emt 0:00:04]} 16. a3 {[%emt 0:00:18]} Rfe8 {[%emt 0:04:04]} 17. Nf3 {[%emt 0:04:46] [#]} Rad8 $146 {[%emt 0:00:38]} ({Predecessor:} 17... Re7 18. Rac1 Rae8 19. Bd3 g6 20. b4 Kg7 21. Qc4 h5 22. Qd5 Rd8 23. Qg5 Qxg5 24. Nxg5 {1-0 Andreikin,D (2728)-Shipov,S (2541) Titled Tuesday intern op 21st Sept blitz 2021 (6)}) 18. Kg2 {[%emt 0:00:43]} Re6 {[%emt 0:00:56]} 19. Rac1 {[%emt 0:10:20]} Rde8 {[%emt 0:04:03]} 20. Bh7+ {[%emt 0:03:21]} Kh8 {[%emt 0:00:13] ...g6 would be deadly.} 21. Bd3 {[%emt 0:00:05]} Ne5 {[%emt 0:01:41]} 22. Nxe5 {[%emt 0:04:00]} Rxe5 {[%emt 0:03:54]} 23. Qb3 {[%emt 0:08:17]} g6 {[%emt 0:11:31]} 24. Rc2 {[%emt 0:05:35]} Kg7 {[%emt 0:03:17]} 25. Rfc1 {[%emt 0:01:56]} Qe6 {[%emt 0:08:58]} (25... Rh5 {feels hotter.} 26. h4 Ree5 27. Rg1 Qd8) 26. Qxe6 {[%emt 0:02:54]} R5xe6 {[%emt 0:00:17]} 27. b4 {[%emt 0:00:18]} a5 {[%emt 0:03:22]} 28. Rc4 {[%emt 0:06:09]} Rd8 {[%emt 0:03:18]} 29. g4 {[%emt 0:11:48]} Rdd6 {[%emt 0:11:24]} 30. Rb1 {[%emt 0:17:00]} Re7 {[%emt 0:10:33]} 31. a4 {[%emt 0:02:10]} Rdd7 {[%emt 0:10:57]} 32. h4 {[%emt 0:04:36]} Rc7 {[%emt 0:01:52]} 33. bxa5 {[%emt 0:01:47]} Rxc4 {[%emt 0:00:42]} 34. Bxc4 {[%emt 0:00:02]} Bxa5 $16 {[%emt 0:00:06][%mdl 4096] Endgame KRB-KRB} 35. Rb5 {[%emt 0:00:18]} b6 {[%emt 0:00:27]} 36. Rd5 {[%emt 0:00:49]} Bc3 {[%emt 0:01:09]} 37. Rd6 {[%emt 0:00:20]} Ra7 {[%emt 0:00:07]} 38. Bb5 {[%emt 0:00:50]} Rb7 {[%emt 0:00:29]} 39. h5 {[%emt 0:01:08]} gxh5 $1 {[%emt 0:00:42]} 40. gxh5 {[%emt 0:00:05]} Re7 {[%emt 0:00:25]} (40... Rc7 $1 $14) 41. f4 {[%emt 0:03:01]} Re6 {[%emt 0:01:39]} 42. Rd7 {[%emt 0:00:02]} Rf6 {[%emt 0:00:48]} 43. Kf3 {[%emt 0:00:19]} Bb2 {[%emt 0:00:16]} 44. Bc4 {[%emt 0:01:22]} Bc3 {[%emt 0:00:05]} 45. Ke4 {[%emt 0:00:58]} Bd2 {[%emt 0:02:28]} 46. f5 {[%emt 0:00:02]} (46. Rxd4 $6 Rxf4+ 47. Ke5 Rxd4 48. Kxd4 Kf6 $11) 46... Be3 {[%emt 0:00:16]} 47. Ke5 {[%emt 0:01:23]} Bf2 {[%emt 0:00:19]} 48. Bd5 {[%emt 0:02:07]} Bg3+ {[%emt 0:01:20]} 49. Ke4 $1 {[%emt 0:00:05]} Bf2 {[%emt 0:00:06]} 50. Rc7 {[%emt 0:02:14]} Bg1 {[%emt 0:01:19]} 51. Rc1 {[%emt 0:02:12] White is much more active.} Be3 {[%emt 0:00:58]} 52. Rf1 {[%emt 0:00:42]} Kf8 {[%emt 0:02:31]} 53. Ke5 {[%emt 0:01:35]} Ke7 {[%emt 0:00:06]} 54. Rf3 {[%emt 0:00:59]} Bg1 {[%emt 0:00:34]} 55. Ke4 {[%emt 0:01:31]} Kd6 {[%emt 0:03:21]} 56. Rb3 {[%emt 0:02:20]} Ke7 {[%emt 0:00:19]} 57. Rg3 {[%emt 0:00:56]} Bf2 {[%emt 0:00:12]} 58. Rg8 {[%emt 0:00:21]} Rd6 {[%emt 0:02:39]} 59. Rg7 {[%emt 0:01:06]} Rf6 {[%emt 0:01:09]} 60. Ke5 {[%emt 0:00:56]} Be1 {[%emt 0:01:35]} 61. Bc4 {[%emt 0:01:38]} (61. Kxd4 $6 Kf8 62. Rg4 Rxf5 $11) 61... Bc3 {[%emt 0:00:35]} 62. Ke4 {[%emt 0:00:43]} Bb2 {[%emt 0:00:32][%cal Od4d3]} 63. Rg1 {[%emt 0:00:26]} Bc3 {[%emt 0:00:18]} 64. Bd5 {[%emt 0:00:29]} Rd6 {[%emt 0:00:10]} 65. Rc1 {[%emt 0:00:36]} Kf6 {[%emt 0:00:56]} 66. Rb1 {[%emt 0:00:14]} Ke7 {[%emt 0:00:29]} 67. Rb3 {[%emt 0:00:07]} Ba1 {[%emt 0:00:11]} 68. Rb5 {[%emt 0:00:46]} Kf6 {[%emt 0:00:49]} (68... Bc3 $11) 69. a5 {[%emt 0:00:54]} bxa5 {[%emt 0:00:47]} 70. Rxa5 {[%emt 0:00:01]} Bc3 {[%emt 0:00:48]} 71. Ra7 {[%emt 0:00:01]} Rb6 $2 {[%emt 0:00:31]} (71... Kg5 $14) 72. Rxf7+ $18 {[%emt 0:01:04]} (72. Bxf7 $6 d3 73. Kxd3 (73. exd3 Rb1 $16) 73... Be5) 72... Kg5 {[%emt 0:00:21]} 73. Rg7+ $1 {[%emt 0:00:13]} Kxh5 {[%emt 0:00:16]} (73... Kh4 {is a better defense.} 74. Rg2 (74. Rg6 Rb2 $18) 74... Bb2) 74. Kf4 {[%emt 0:00:59]} Rb1 $2 {[%emt 0:01:02]} (74... Rb5 {was necessary.}) 75. Bf3+ {[%emt 0:00:33]} Kh4 {[%emt 0:00:01]} 76. Rg2 {[%emt 0:00:31]} (76. Rg4+ $142 Kh3 77. f6 Bd2+ 78. Ke4) 76... Bd2+ {[%emt 0:00:12]} 77. Ke4 {[%emt 0:00:11]} (77. Ke5 $1 $18) 77... Be3 $2 {[%emt 0:00:37][%mdl 8192]} (77... Bg5 $14) 78. f6 {[%emt 0:00:11][%cal Bf5f6,Bf6f7][%mdl 32]} Rb8 {[%emt 0:00:27]} 79. Kf5 {[%emt 0:00:25]} Bg5 {[%emt 0:00:16]} 80. f7 {[%emt 0:01:01]} Be7 {[%emt 0:00:07]} 81. Rh2+ $2 {[%emt 0:00:47]} (81. Rg8 Rb6 82. f8=Q Bxf8 83. Rxf8) 81... Kg3 {[%emt 0:00:06]} 82. Rg2+ $2 {[%emt 0:00:18]} ({Don't play} 82. Rxh6 $6 d3 $14) ({White should try} 82. Rh1 $1 $18) 82... Kh3 $2 {[%emt 0:00:14][%mdl 8192]} (82... Kh4 $1 $11 {and Black has nothing to worry.} 83. Rg8 Rb6) 83. Rg6 {[%emt 0:00:14]} Bf8 {[%emt 0:00:11]} 84. Re6 {[%emt 0:00:14] And now Re8 would win.} Rb5+ {[%emt 0:00:29]} 85. Kf6 {[%emt 0:00:45]} Rg5 $2 {[%emt 0:00:24] [#]} (85... Ba3 86. Re4 Rd5) 86. Re8 $1 {[%emt 0:00:15]} Bg7+ {[%emt 0:00:05]} 87. Ke6 {[%emt 0:00:37] Threatening mate with Rg8.} Re5+ {[%emt 0:00:05]} (87... Rg6+ $142 88. Ke7 Ra6) 88. Kd6 {[%emt 0:00:20] White is clearly winning.} Rf5 {[%emt 0:00:06] [#]} 89. Bd5 $1 {[%emt 0:00:17] Be6 would kill now.} Rf2 {[%emt 0:01:07]} 90. Rg8 {[%emt 0:00:23] Weighted Error Value: White=0.03 (flawless) /Black=0.05 (flawless)} (90. Be6+ $142 Kh2 91. Rg8) 1-0

[Event "28th Bosnjaci Open 2024"]
[Site "Bosnjaci"]
[Date "2024.01.06"]
[Round "5.3"]
[White "Cvitan, Ena"]
[Black "Zaja, Ivan"]
[Result "0-1"]
[ECO "E45"]
[WhiteElo "2242"]
[BlackElo "2419"]
[Annotator "RC"]
[PlyCount "52"]
[EventDate "2024.01.02"]
[EventType "swiss"]
[EventCountry "CRO"]
[SourceTitle "playchess.com"]
[Source "ChessBase"]
[SourceQuality "1"]
[TimeControl "5400+30"]

1. d4 {[%emt 0:02:04]} Nf6 {[%emt 0:00:18]} 2. c4 {[%emt 0:00:13]} e6 {[%emt 0:00:27]} 3. Nc3 {[%emt 0:00:07]} Bb4 {[%emt 0:00:05]} 4. e3 {[%emt 0:00:08]} b6 {[%emt 0:00:57]} 5. Nge2 {[%emt 0:00:19]} Ba6 {[%emt 0:01:36]} 6. Ng3 {[%emt 0:00:15]} h5 {[%emt 0:02:16]} 7. Bd3 {[%emt 0:05:32]} Bb7 {[%emt 0:03:04]} 8. Rg1 {[%emt 0:09:06]} c5 {[%emt 0:03:27]} 9. Bd2 {[%emt 0:02:39]} cxd4 {[%emt 0:06:30]} 10. exd4 {[%emt 0:00:38]} Nc6 {[%emt 0:00:27]} 11. a3 {[%emt 0:08:38]} Be7 {[%emt 0:01:16]} 12. d5 {[%emt 0:04:02]} Ne5 {[%emt 0:11:54]} 13. Qe2 {[%emt 0:01:44]} Qc7 {[%emt 0:09:28]} 14. Rc1 {[%emt 0:16:11]} Nxd3+ {[%emt 0:04:39]} 15. Qxd3 {[%emt 0:00:06]} Ba6 {[%emt 0:00:27]} 16. Nce4 {[%emt 0:05:15]} exd5 {[%emt 0:02:29]} 17. Nxf6+ {[%emt 0:01:48]} Bxf6 {[%emt 0:00:11]} 18. Qxd5 {[%emt 0:00:50]} Bb7 {[%emt 0:00:54]} 19. Qf5 {[%emt 0:01:42]} O-O {[%emt 0:07:39]} 20. Nxh5 {[%emt 0:01:24]} Bxb2 {[%emt 0:02:38]} 21. Rc3 {[%emt 0:06:26]} Rfe8+ {[%emt 0:02:38]} 22. Kd1 {[%emt 0:00:06]} Bxc3 {[%emt 0:04:11]} 23. Bxc3 {[%emt 0:00:08]} Qxc4 {[%emt 0:02:00]} 24. Nf6+ {[%emt 0:02:42]} gxf6 {[%emt 0:00:16]} 25. Qxf6 {[%emt 0:00:10]} Qd3+ {[%emt 0:00:04]} 26. Kc1 {[%emt 0:00:08]} Qxc3+ {[%emt 0:00:12]} 0-1

[Event "28th Bosnjaci Open 2024"]
[Site "Bosnjaci"]
[Date "2024.01.06"]
[Round "5.4"]
[White "Fercec, Nenad"]
[Black "Sajin, Mirko"]
[Result "1/2-1/2"]
[ECO "B36"]
[WhiteElo "2410"]
[BlackElo "2299"]
[Annotator "RC"]
[PlyCount "54"]
[EventDate "2024.01.02"]
[EventType "swiss"]
[EventCountry "CRO"]
[SourceTitle "playchess.com"]
[Source "ChessBase"]
[SourceQuality "1"]
[TimeControl "5400+30"]

1. e4 {[%emt 0:00:38]} c5 {[%emt 0:00:19]} 2. Nf3 {[%emt 0:00:06]} g6 {[%emt 0:00:16]} 3. d4 {[%emt 0:00:43]} cxd4 {[%emt 0:00:13]} 4. Nxd4 {[%emt 0:00:11]} Nc6 {[%emt 0:00:36]} 5. c4 {[%emt 0:00:10]} Nf6 {[%emt 0:01:24]} 6. Nc3 {[%emt 0:00:43]} d6 {[%emt 0:01:44]} 7. Be2 {[%emt 0:00:13]} Nxd4 {[%emt 0:00:16]} 8. Qxd4 {[%emt 0:00:08]} Bg7 {[%emt 0:00:07]} 9. Be3 {[%emt 0:00:19]} O-O {[%emt 0:00:31]} 10. Qd2 {[%emt 0:00:07]} a5 {[%emt 0:01:52]} 11. O-O {[%emt 0:00:16]} a4 {[%emt 0:01:13]} 12. f4 {[%emt 0:01:15]} Be6 {[%emt 0:16:38]} 13. Bd4 {[%emt 0:27:37]} Qa5 {[%emt 0:05:23]} 14. Qe3 {[%emt 0:00:35]} Rfc8 {[%emt 0:14:53]} 15. Nd5 {[%emt 0:05:43]} Bxd5 {[%emt 0:06:35]} 16. exd5 {[%emt 0:04:53]} Qd8 {[%emt 0:04:07]} 17. f5 {[%emt 0:00:57]} Nd7 {[%emt 0:05:36]} 18. fxg6 {[%emt 0:00:13]} hxg6 {[%emt 0:00:18]} 19. Bxg7 {[%emt 0:02:33]} Kxg7 {[%emt 0:00:45]} 20. Qd4+ {[%emt 0:00:06]} Ne5 {[%emt 0:01:10]} 21. b4 {[%emt 0:00:42]} axb3 {[%emt 0:01:06]} 22. axb3 {[%emt 0:00:07]} Rxa1 {[%emt 0:02:05]} 23. Rxa1 {[%emt 0:00:10]} Ra8 {[%emt 0:00:51]} 24. Rxa8 {[%emt 0:00:51]} Qxa8 {[%emt 0:01:40]} 25. c5 {[%emt 0:03:04]} Qa2 {[%emt 0:05:09]} 26. Bd1 {[%emt 0:12:30]} f6 {[%emt 0:01:04]} 27. cxd6 {[%emt 0:00:24]} exd6 {[%emt 0:00:07]} 1/2-1/2

[Event "28th Bosnjaci Open 2024"]
[Site "Bosnjaci"]
[Date "2024.01.06"]
[Round "5.5"]
[White "Culum, Sanjin"]
[Black "Pavic, Filip"]
[Result "1-0"]
[ECO "B12"]
[WhiteElo "2349"]
[BlackElo "2261"]
[Annotator "RC"]
[PlyCount "53"]
[EventDate "2024.01.02"]
[EventType "swiss"]
[EventCountry "CRO"]
[SourceTitle "playchess.com"]
[Source "ChessBase"]
[SourceQuality "1"]
[TimeControl "5400+30"]

1. e4 {[%emt 0:00:10]} c6 {[%emt 0:00:22]} 2. d4 {[%emt 0:00:44]} d5 {[%emt 0:00:07]} 3. e5 {[%emt 0:00:52]} Bf5 {[%emt 0:01:35]} 4. h4 {[%emt 0:00:33]} h6 {[%emt 0:01:24]} 5. g4 {[%emt 0:01:47]} Be4 {[%emt 0:00:07]} 6. f3 {[%emt 0:00:18]} Bh7 {[%emt 0:00:08]} 7. e6 {[%emt 0:00:48]} Qd6 {[%emt 0:00:42]} 8. exf7+ {[%emt 0:00:05]} Kxf7 {[%emt 0:00:08]} 9. f4 {[%emt 0:00:15]} Nf6 {[%emt 0:08:51]} 10. Nf3 {[%emt 0:00:26]} Nxg4 {[%emt 0:09:00]} 11. Bh3 {[%emt 0:00:16]} Nf6 {[%emt 0:04:26]} 12. Ne5+ {[%emt 0:01:47]} Ke8 {[%emt 0:03:07]} 13. Nc3 {[%emt 0:07:46]} e6 {[%emt 0:16:44]} 14. Qe2 {[%emt 0:13:46]} Be7 {[%emt 0:08:24]} 15. Be3 {[%emt 0:05:09]} Bf5 {[%emt 0:02:52]} 16. Qg2 {[%emt 0:02:42]} Kf8 {[%emt 0:18:14]} 17. Bxf5 {[%emt 0:10:27]} exf5 {[%emt 0:00:02]} 18. Qg6 {[%emt 0:00:30]} Qe6 {[%emt 0:00:06]} 19. Ne2 {[%emt 0:00:04]} Bd6 {[%emt 0:13:37]} 20. Ng3 {[%emt 0:00:49]} Bxe5 {[%emt 0:04:53]} 21. dxe5 {[%emt 0:00:31]} Qe8 {[%emt 0:00:48]} 22. Qxf5 {[%emt 0:00:19]} Nbd7 {[%emt 0:01:05]} 23. O-O-O {[%emt 0:00:46]} Kg8 {[%emt 0:02:07]} 24. Rhg1 {[%emt 0:02:12]} Nf8 {[%emt 0:01:28]} 25. Bd4 {[%emt 0:01:06]} N6d7 {[%emt 0:00:30]} 26. Nh5 {[%emt 0:02:42]} Ne6 {[%emt 0:01:22]} 27. Rg6 {[%emt 0:00:24]} 1-0

[Event "28th Bosnjaci Open 2024"]
[Site "Bosnjaci"]
[Date "2024.01.06"]
[Round "5.6"]
[White "Hadzovic, Amir"]
[Black "Milovic, Jovan"]
[Result "1/2-1/2"]
[ECO "B01"]
[WhiteElo "2307"]
[BlackElo "2223"]
[Annotator "RC"]
[PlyCount "96"]
[EventDate "2024.01.02"]
[EventType "swiss"]
[EventCountry "CRO"]
[SourceTitle "playchess.com"]
[Source "ChessBase"]
[SourceQuality "1"]
[TimeControl "5400+30"]

1. e4 {[%emt 0:00:04]} d5 {[%emt 0:03:53]} 2. exd5 {[%emt 0:00:12]} Nf6 {[%emt 0:00:07]} 3. d4 {[%emt 0:00:16]} Bg4 {[%emt 0:00:28]} 4. Be2 {[%emt 0:10:21]} Bxe2 {[%emt 0:00:41]} 5. Nxe2 {[%emt 0:00:07]} Qxd5 {[%emt 0:00:19]} 6. O-O {[%emt 0:00:20]} e6 {[%emt 0:00:37]} 7. Nf4 {[%emt 0:04:47]} Qf5 {[%emt 0:00:46]} 8. c4 {[%emt 0:01:04]} Bd6 {[%emt 0:00:38]} 9. Qd3 {[%emt 0:23:10]} Bxf4 {[%emt 0:01:05]} 10. Qxf5 {[%emt 0:00:05]} Bxh2+ {[%emt 0:00:22]} 11. Kxh2 {[%emt 0:00:03]} exf5 {[%emt 0:00:03]} 12. Nc3 {[%emt 0:00:25]} O-O {[%emt 0:00:54]} 13. Nb5 {[%emt 0:01:57]} Na6 {[%emt 0:04:04]} 14. Bf4 {[%emt 0:02:00]} Rad8 {[%emt 0:04:44]} 15. Rad1 {[%emt 0:00:35]} c6 {[%emt 0:00:20]} 16. Nc3 {[%emt 0:05:54]} Nh5 {[%emt 0:04:14]} 17. Bg5 {[%emt 0:02:43]} f6 {[%emt 0:00:35]} 18. Bc1 {[%emt 0:03:36]} Rd7 {[%emt 0:03:47]} 19. d5 {[%emt 0:05:47]} c5 {[%emt 0:06:26]} 20. Rfe1 {[%emt 0:01:54]} Kf7 {[%emt 0:00:40]} 21. Nb5 {[%emt 0:02:11]} b6 {[%emt 0:00:24]} 22. Re3 {[%emt 0:01:48]} Nb4 {[%emt 0:00:49]} 23. Rh3 {[%emt 0:15:05]} g6 {[%emt 0:00:42]} 24. Bd2 {[%emt 0:00:27]} Re8 {[%emt 0:07:41]} 25. Bxb4 {[%emt 0:01:41]} cxb4 {[%emt 0:00:04]} 26. Nd4 {[%emt 0:00:27]} f4 {[%emt 0:04:24]} 27. a3 {[%emt 0:05:27]} bxa3 {[%emt 0:01:50]} 28. Rxa3 {[%emt 0:00:05]} Re4 {[%emt 0:00:52]} 29. Rc3 {[%emt 0:02:23]} f5 {[%emt 0:01:08]} 30. Nc6 {[%emt 0:02:58]} Nf6 {[%emt 0:02:18]} 31. Kg1 {[%emt 0:00:34]} g5 {[%emt 0:09:39]} 32. Kf1 {[%emt 0:01:11]} Ng4 {[%emt 0:03:37]} 33. b4 {[%emt 0:02:03]} Kf6 {[%emt 0:02:20]} 34. d6 {[%emt 0:02:31]} Re8 {[%emt 0:05:07]} 35. c5 {[%emt 0:00:27]} a5 {[%emt 0:05:35]} 36. Nxa5 {[%emt 0:01:47]} bxa5 {[%emt 0:01:00]} 37. c6 {[%emt 0:00:05]} axb4 {[%emt 0:02:12]} 38. cxd7 {[%emt 0:00:09]} Rd8 {[%emt 0:00:04]} 39. Rc4 {[%emt 0:02:40]} Rxd7 {[%emt 0:00:22]} 40. Rxb4 {[%emt 0:00:05]} Ne5 {[%emt 0:02:06]} 41. Rb5 {[%emt 0:00:15]} Nf7 {[%emt 0:01:00]} 42. Rb6 {[%emt 0:00:18]} h5 {[%emt 0:01:19]} 43. Rd2 {[%emt 0:01:03]} h4 {[%emt 0:01:01]} 44. f3 {[%emt 0:00:35]} Ne5 {[%emt 0:00:13]} 45. Rd4 {[%emt 0:00:26]} h3 {[%emt 0:02:00]} 46. Kg1 {[%emt 0:00:49]} Ke6 {[%emt 0:02:10]} 47. Ra6 {[%emt 0:00:35]} hxg2 {[%emt 0:02:21]} 48. Kxg2 {[%emt 0:00:04]} Nf7 {[%emt 0:00:26]} 1/2-1/2

[Event "28th Bosnjaci Open 2024"]
[Site "Bosnjaci"]
[Date "2024.01.06"]
[Round "5.7"]
[White "Rosic, Slavko S"]
[Black "Kovacevic, Blazimir"]
[Result "0-1"]
[ECO "C11"]
[WhiteElo "2231"]
[BlackElo "2381"]
[Annotator "RC"]
[PlyCount "122"]
[EventDate "2024.01.02"]
[EventType "swiss"]
[EventCountry "CRO"]
[SourceTitle "playchess.com"]
[Source "ChessBase"]
[SourceQuality "1"]
[TimeControl "5400+30"]

1. e4 {[%emt 0:00:02]} e6 {[%emt 0:00:05]} 2. d4 {[%emt 0:00:10]} d5 {[%emt 0:00:06]} 3. Nc3 {[%emt 0:00:13]} Nf6 {[%emt 0:00:23]} 4. e5 {[%emt 0:03:05]} Nfd7 {[%emt 0:00:06]} 5. Nf3 {[%emt 0:06:30]} c5 {[%emt 0:00:46]} 6. Bb5 {[%emt 0:01:16]} Nc6 {[%emt 0:04:25]} 7. dxc5 {[%emt 0:00:28]} Nxc5 {[%emt 0:01:48]} 8. O-O {[%emt 0:00:46]} Be7 {[%emt 0:02:28]} 9. Qd4 {[%emt 0:01:58]} O-O {[%emt 0:04:05]} 10. Qg4 {[%emt 0:02:13]} f5 {[%emt 1:21:18]} 11. exf6 {[%emt 0:04:56]} Bxf6 {[%emt 0:00:00]} 12. Bxc6 {[%emt 0:00:45]} bxc6 {[%emt 0:00:00]} 13. Bg5 {[%emt 1:14:38]} e5 {[%emt 0:00:00]} 14. Bxf6 {[%emt 0:00:00]} Qxf6 {[%emt 0:00:00]} 15. Qb4 {[%emt 0:00:00]} Nd7 {[%emt 0:00:00]} 16. Qa5 {[%emt 0:00:00]} Nb6 {[%emt 0:00:00]} 17. Nd2 {[%emt 0:00:00]} Qg6 {[%emt 0:00:00]} 18. Ne2 {[%emt 0:00:00]} Qxc2 {[%emt 0:00:00]} 19. Rac1 {[%emt 0:00:00]} Qg6 {[%emt 0:00:00]} 20. Rc3 {[%emt 0:00:00]} Bd7 {[%emt 0:00:00]} 21. Rg3 {[%emt 0:00:00]} Qh6 {[%emt 0:00:00]} 22. Qc3 {[%emt 0:00:00]} d4 {[%emt 0:00:00]} 23. Qa5 {[%emt 0:00:00]} Rf5 {[%emt 0:00:00]} 24. Rh3 {[%emt 0:00:00]} Qd6 {[%emt 0:00:00]} 25. Ng3 {[%emt 0:00:00]} Rf7 {[%emt 0:00:00]} 26. Rh5 {[%emt 0:00:00]} Re7 {[%emt 0:00:00]} 27. Nde4 {[%emt 0:00:00]} Qd5 {[%emt 0:00:00]} 28. Qd2 {[%emt 0:00:00]} Rf8 {[%emt 0:00:04]} 29. b3 {[%emt 0:00:00]} Be8 {[%emt 0:01:09]} 30. Rf5 {[%emt 0:00:00]} Bg6 {[%emt 0:00:57]} 31. Rxf8+ {[%emt 0:00:00]} Kxf8 {[%emt 0:00:04]} 32. f3 {[%emt 0:00:00]} c5 {[%emt 0:02:37]} 33. Rc1 {[%emt 0:00:00]} Rc7 {[%emt 0:00:59]} 34. Qg5 {[%emt 0:00:00]} Nc8 {[%emt 0:03:28]} 35. h4 {[%emt 0:00:00]} Ne7 {[%emt 0:01:37]} 36. h5 {[%emt 0:00:00]} h6 {[%emt 0:00:04]} 37. Qd2 {[%emt 0:00:00]} Bxe4 {[%emt 0:00:47]} 38. fxe4 {[%emt 0:00:00]} Qe6 {[%emt 0:00:17]} 39. Qa5 {[%emt 0:00:00]} Qd6 {[%emt 0:00:43]} 40. Qb5 {[%emt 0:00:00]} Kg8 {[%emt 0:00:45]} 41. Qc4+ {[%emt 0:00:00]} Kh7 {[%emt 0:00:04]} 42. b4 {[%emt 0:00:00]} d3 {[%emt 0:01:04]} 43. Nf1 {[%emt 0:00:00]} d2 {[%emt 0:00:22]} 44. Rd1 {[%emt 0:00:00]} cxb4 {[%emt 0:00:09]} 45. Qe2 {[%emt 0:00:00]} Nc6 {[%emt 0:01:22]} 46. Rxd2 {[%emt 0:00:00]} Nd4 {[%emt 0:00:06]} 47. Qf2 {[%emt 0:02:05]} Rc1 {[%emt 0:00:54]} 48. Kh2 {[%emt 0:00:24]} Qe7 {[%emt 0:00:50]} 49. Rd3 {[%emt 0:13:23]} Qg5 {[%emt 0:00:12]} 50. Qf7 {[%emt 0:01:16]} Rc3 {[%emt 0:00:36]} 51. Rh3 {[%emt 0:01:09]} Rxh3+ {[%emt 0:00:19]} 52. Kxh3 {[%emt 0:00:17]} Ne2 {[%emt 0:00:35]} 53. g3 {[%emt 0:00:22]} Qf6 {[%emt 0:00:24]} 54. Qxf6 {[%emt 0:00:58]} gxf6 {[%emt 0:00:05]} 55. Ne3 {[%emt 0:00:07]} Nc3 {[%emt 0:00:10]} 56. Kg4 {[%emt 0:00:05]} Nxa2 {[%emt 0:00:22]} 57. Kf5 {[%emt 0:00:09]} Kg7 {[%emt 0:00:24]} 58. g4 {[%emt 0:00:06]} Nc3 {[%emt 0:00:32]} 59. g5 {[%emt 0:00:42]} hxg5 {[%emt 0:00:26]} 60. Nd5 {[%emt 0:01:14]} Nxd5 {[%emt 0:00:50]} 61. exd5 {[%emt 0:00:02]} b3 {[%emt 0:00:08]} 0-1

[Event "28th Bosnjaci Open 2024"]
[Site "Bosnjaci"]
[Date "2024.01.06"]
[Round "5.8"]
[White "Sipic, Hrvoje"]
[Black "Zufic, Miroslav"]
[Result "0-1"]
[ECO "B51"]
[WhiteElo "2185"]
[BlackElo "2354"]
[Annotator "RC"]
[PlyCount "96"]
[EventDate "2024.01.02"]
[EventType "swiss"]
[EventCountry "CRO"]
[SourceTitle "playchess.com"]
[Source "ChessBase"]
[SourceQuality "1"]
[TimeControl "5400+30"]

1. e4 {[%emt 0:00:03]} c5 {[%emt 0:00:14]} 2. Nf3 {[%emt 0:00:11]} d6 {[%emt 0:00:17]} 3. Bb5+ {[%emt 0:00:31]} Nd7 {[%emt 0:00:52]} 4. O-O {[%emt 0:01:25]} Ngf6 {[%emt 0:01:34]} 5. Re1 {[%emt 0:01:06]} a6 {[%emt 0:00:42]} 6. Bf1 {[%emt 0:00:11]} b6 {[%emt 0:01:54]} 7. d4 {[%emt 0:06:40]} cxd4 {[%emt 0:00:39]} 8. Nxd4 {[%emt 0:01:18]} Bb7 {[%emt 0:02:35]} 9. Nc3 {[%emt 0:00:21]} e6 {[%emt 0:03:48]} 10. Bg5 {[%emt 0:08:01]} Be7 {[%emt 0:02:54]} 11. a4 {[%emt 0:03:09]} O-O {[%emt 0:03:42]} 12. Qd2 {[%emt 0:11:19]} Rc8 {[%emt 0:06:44]} 13. Qe3 {[%emt 0:14:43]} Re8 {[%emt 0:13:59]} 14. Qh3 {[%emt 0:03:32]} Rc5 {[%emt 0:05:54]} 15. f4 {[%emt 0:06:01]} h6 {[%emt 0:04:35]} 16. Bh4 {[%emt 0:12:24]} g5 {[%emt 0:12:21]} 17. Bf2 {[%emt 0:06:48]} gxf4 {[%emt 0:01:46]} 18. Nxe6 {[%emt 0:09:18]} fxe6 {[%emt 0:00:26]} 19. Bxc5 {[%emt 0:01:51]} Nxc5 {[%emt 0:10:45]} 20. Qxh6 {[%emt 0:00:16]} Bf8 {[%emt 0:02:51]} 21. Qxf4 {[%emt 0:00:21]} Bg7 {[%emt 0:05:52]} 22. Rad1 {[%emt 0:01:53]} d5 {[%emt 0:00:24]} 23. b4 {[%emt 0:03:20]} Ncd7 {[%emt 0:02:31]} 24. exd5 {[%emt 0:01:19]} exd5 {[%emt 0:00:38]} 25. Bd3 {[%emt 0:02:14]} Qc8 {[%emt 0:03:36]} 26. Ne2 {[%emt 0:01:17]} Ne4 {[%emt 0:01:11]} 27. Rf1 {[%emt 0:01:49]} Ne5 {[%emt 0:04:24]} 28. Ng3 {[%emt 0:02:03]} Qg4 {[%emt 0:04:11]} 29. Bxe4 {[%emt 0:01:02]} dxe4 {[%emt 0:00:17]} 30. Qxg4 {[%emt 0:00:11]} Nxg4 {[%emt 0:00:08]} 31. Rd7 {[%emt 0:00:23]} Bc6 {[%emt 0:00:45]} 32. Rc7 {[%emt 0:00:42]} Bxa4 {[%emt 0:02:42]} 33. Nf5 {[%emt 0:00:38]} Be5 {[%emt 0:00:56]} 34. Ne7+ {[%emt 0:00:35]} Kh7 {[%emt 0:00:38]} 35. Rf7+ {[%emt 0:01:05]} Kh6 {[%emt 0:00:03]} 36. Nf5+ {[%emt 0:00:00]} Kh5 {[%emt 0:00:57]} 37. Rh7+ {[%emt 0:00:25]} Kg5 {[%emt 0:00:32]} 38. Rcf7 {[%emt 0:00:30]} e3 {[%emt 0:00:31]} 39. h4+ {[%emt 0:00:26]} Kg6 {[%emt 0:00:15]} 40. Ne7+ {[%emt 0:00:35]} Rxe7 {[%emt 0:00:05]} 41. Rxe7 {[%emt 0:00:07]} Bf6 {[%emt 0:01:18]} 42. h5+ {[%emt 0:00:42]} Kf5 {[%emt 0:00:09]} 43. Rhf7 {[%emt 0:00:34]} Kg5 {[%emt 0:00:17]} 44. Re6 {[%emt 0:00:37]} Bxc2 {[%emt 0:00:52]} 45. h6 {[%emt 0:00:21]} Bd4 {[%emt 0:00:39]} 46. h7 {[%emt 0:00:40]} Bxh7 {[%emt 0:00:24]} 47. Rxh7 {[%emt 0:00:28]} e2+ {[%emt 0:00:06]} 48. Kh1 {[%emt 0:01:05]} Ne5 {[%emt 0:00:27]} 0-1